Cogmind - Beta 13 @@@ ROGUE MODE // 2024.03.14 @ 18:35:33 Player: opdo Result: Destroyed by S-10 Pest with Light Assault Rifle Performance ------------- Evolutions (2) 1000 Regions Visited (5) 1000 Robots Destroyed (24) 120 Value Destroyed (662) 662 Prototype IDs (4) 80 Alien Tech Used (0) 0 Bonus (0) 0 TOTAL SCORE: 2862 Bonus ------- None Cogmind --------- Core Integrity 0/550 Matter 281/300 Energy 93/100 System Corruption 0% Temperature Cool (0) Movement Core (50) Location -8/Storage Parts ------- > --- POWER (2) -------- (None) > --- PROPULSION (3) --- Improved VTOL Module > --- UTILITY (4) ------ (None) > --- WEAPON (2) ------- Light Assault Rifle > --- INVENTORY (5) ---- Light Treads Aluminum Leg Carbon-fiber Leg Improved Heat Sink Peak State ------------ > --- POWER ------------ Ion Engine Improved Ion Engine > --- PROPULSION ------- Improved VTOL Module Improved VTOL Module > --- UTILITY ---------- Improved Terrain Scanner Improved Terrain Scanner Light Armor Plating > --- WEAPON ----------- Improved EM Pulse Cannon Advanced Assault Cannon > --- INVENTORY -------- Light Treads Carbon-fiber Leg Improved VTOL Module Improved Medium Laser [Rating: 27] Favorites ----------- Power Ion Engine Engine Ion Engine Propulsion Aluminum Leg Treads Light Treads Leg Aluminum Leg Flight Unit Improved VTOL Module Utility Improved Terrain Scanner Device Improved Terrain Scanner Protection Light Armor Plating Weapon Medium Laser Energy Gun Medium Laser Energy Cannon Improved EM Pulse Cannon Ballistic Gun Light Assault Rifle Ballistic Cannon Advanced Assault Cannon Launcher Grenade Launcher Build | -11 -10 -10 -10 -8 -8 ------- Run | Yrd Mat Min Sub Mat Sto Slots Evolved 4 | . . . . 4 . Power 1 | . . . . 1 . Propulsion 1 | . . . . 1 . Utility 2 | . . . . 2 . Weapon . | . . . . . . Parts Attached 31 | 5 . 2 1 18 5 Power 3 | 1 . . . 2 . Engine 3 | 1 . . . 2 . Core . | . . . . . . Reactor . | . . . . . . Propulsion 8 | 2 . . . 6 . Treads 2 | . . . . 2 . Leg 2 | 2 . . . . . Wheel . | . . . . . . Hover . | . . . . . . Flight 4 | . . . . 4 . Utility 3 | . . 1 . 2 . Device 2 | . . 1 . 1 . Storage . | . . . . . . Processor . | . . . . . . Hackware . | . . . . . . Protection 1 | . . . . 1 . Artifact . | . . . . . . Weapon 17 | 2 . 1 1 8 5 Energy Gun 10 | 2 . . 1 5 2 Energy Cannon 4 | . . . . 2 2 Ballistic Gun 1 | . . . . . 1 Ballistic Cannon 1 | . . . . 1 . Launcher 1 | . . 1 . . . Special Weapon . | . . . . . . Impact Weapon . | . . . . . . Slashing Weapon . | . . . . . . Piercing Weapon . | . . . . . . Special Melee Weapon . | . . . . . . Unidentified Prototypes 4 | . . . . 4 . Parts Lost 14 | . . . 2 3 9 Power 2 | . . . . 1 1 Propulsion 4 | . . . 1 1 2 Utility 2 | . . . . . 2 Weapon 6 | . . . 1 1 4 Highest Loss Streak 4 | . . . 2 2 4 To Critical Strikes . | . . . . . . Average Slot Usage (%) 66 | . 71 71 74 71 44 Engine 13 | . 14 14 14 16 1 Treads 3 | . . . . 7 . Leg 9 | . 28 28 17 . . Flight 7 | . . . . 7 22 Device 9 | . . . 14 14 8 Protection 3 | . . . . 6 1 Energy Gun 14 | . 28 25 14 10 10 Ballistic Cannon 2 | . . . . 4 . Launcher 2 | . . 2 14 1 . Naked Turns . | . . . . . . Heaviest Build 30 | 9 9 11 11 30 21 Greatest Support 40 | 20 20 20 20 40 14 Greatest Overweight (x) 4 | 1 . . 1 4 2 Average Overweight (x) . | . . . . . . Largest Inventory Capacity 5 | 5 5 5 5 5 5 Average Capacity 5 | 5 5 5 5 5 5 Most Carried 5 | 5 2 4 3 5 5 Average Carried 3 | 2 2 2 2 3 4 Final Capacity 5 | 5 5 5 5 5 5 Final Carried 4 | 2 2 3 3 4 4 Class Distribution -------------------- 71% | Mutant 27% | Scavenger-Mutant Dominant Class ---------------- Mutant | -10/Materials Mutant | -10/Mines Mutant | -10/Subcaves Scavenger-Mutant | -8/Materials Mutant | -8/Storage Resources | -11 -10 -10 -10 -8 -8 ----------- Run | Yrd Mat Min Sub Mat Sto Matter Collected 603 | 206 . 44 52 189 112 Remotely . | . . . . . . Salvage Created 754 | . . 26 52 425 251 Parts 43 | . . 5 3 25 10 Haulers Intercepted 2 | . . . . 2 . Recyclers Shooed . | . . . . . . Parts Field Recycled . | . . . . . . Retrieved Matter . | . . . . . . Parts Self-Destructed . | . . . . . . Prevented . | . . . . . . Kills | -11 -10 -10 -10 -8 -8 ------- Run | Yrd Mat Min Sub Mat Sto Combat Hostiles Destroyed 18 | . . 1 2 9 6 Guns 10 | . . 1 . 4 5 Cannons 4 | . . . . 3 1 AOE 4 | . . . 2 2 . Classes Destroyed 7 | . . 2 1 4 . Worker 2 | . . . . 2 . Tunneler 2 | . . 1 . 1 . Hauler 2 | . . . . 2 . Swarmer 6 | . . 1 . 3 2 Grunt 6 | . . . . 4 2 Sentry 4 | . . . . 2 2 Subdweller 2 | . . . 2 . . Best Kill Streak 4 | . . 1 2 4 3 Combat Bots Only 3 | . . 1 2 3 3 Max Kills in Single Turn 2 | . . 1 2 2 1 Gunslinging . | . . . . . . Exploded 2 | . . . 2 1 . Melee . | . . . . . . Uniques/NPCs Destroyed . | . . . . . . Combat | -11 -10 -10 -10 -8 -8 -------- Run | Yrd Mat Min Sub Mat Sto Hostile Shots Fired 168 | . . 5 6 66 91 Missed 47 | . . 1 3 21 22 Damage Taken 1723 | . . 68 267 626 762 Core 606 | . . 7 41 183 375 Absorbed by Shields . | . . . . . . Core Remaining (%) 90 | 100 . . 80 . . Volleys Fired 57 | . . 4 2 22 29 Largest 2 | . . 2 2 2 2 Hottest 124 | . . 90 80 117 124 Shots Fired 93 | . . 8 4 43 38 Gun 65 | . . 5 2 24 34 Cannon 19 | . . . . 15 4 Launcher 9 | . . 3 2 4 . Special . | . . . . . . Kinetic 22 | . . . . 13 9 Thermal 50 | . . 1 2 22 25 Explosive 9 | . . 3 2 4 . Electromagnetic 12 | . . 4 . 4 4 Robot Hit Streak 21 | . . . 3 21 19 Robot Miss Streak 3 | . . 2 . 3 3 Penetration Max . | . . . . . . Secondary Targets . | . . . . . . Shots Hit Robots 57 | . . . 3 26 28 Core Hits 35 | . . 2 3 19 11 Critical Kills . | . . . . . . Critical Parts Destroyed . | . . . . . . Critical Strikes 2 | . . . . 1 1 Burn 2 | . . . . 1 1 Melee Attacks . | . . . . . . Impact . | . . . . . . Slashing . | . . . . . . Piercing . | . . . . . . Sneak Attacks . | . . . . . . Combat Hostiles . | . . . . . . Follow-up Attacks . | . . . . . . Damage Inflicted 1713 | . . 60 200 941 512 Guns 690 | . . 22 12 250 406 Cannons 320 | . . . . 215 105 Explosions 702 | . . 38 188 476 . Melee . | . . . . . . Ramming 1 | . . . . . 1 Kinetic 229 | . . . . 183 46 Thermal 595 | . . 12 12 211 360 Explosive 702 | . . 38 188 476 . Electromagnetic 186 | . . 10 . 71 105 Impact . | . . . . . . Slashing . | . . . . . . Piercing . | . . . . . . Highest Corruption . | . . . . . . Average Corruption . | . . . . . . Corruption Purged . | . . . . . . Corruption Blocked . | . . . . . . Overload Shots . | . . . . . . Overflow Damage 73 | . . . . 73 . Projectiles 9 | . . . . 9 . Explosions 64 | . . . . 64 . Melee . | . . . . . . Knockbacks 3 | . . . . 3 . Impact . | . . . . . . Kinetic 2 | . . . . 2 . Secondary 1 | . . . . 1 . Self-Inflicted Damage 162 | . . 39 24 99 . Shots 5 | . . 2 2 1 . Rammed 1 | . . . . . 1 Targets Rammed 1 | . . . . . 1 Kicked . | . . . . . . Crushed . | . . . . . . Highest Temperature 171 | . . 30 . 171 146 Average Temperature 57 | . . 15 . 68 40 Received Heat Transfer 441 | . . . . 216 225 Siege Activations . | . . . . . . Robots Corrupted . | . . . . . . Combat Hostiles . | . . . . . . Parts Fried . | . . . . . . Impact Corruptions . | . . . . . . Robots Melted . | . . . . . . Combat Hostiles . | . . . . . . Parts Melted 3 | . . . . 1 2 Heat Transferred 1480 | . . 37 37 592 814 Parts Sabotaged . | . . . . . . Parts Stolen . | . . . . . . Parts Stripped . | . . . . . . Power Chain Reactions . | . . . . . . Alert | -11 -10 -10 -10 -8 -8 ------- Run | Yrd Mat Min Sub Mat Sto Peak Influence 247 | . . 58 . 247 158 Initial 68 | . . . . 3 68 Average 87 | . . 45 . 120 104 Maximum Alert Level 1 | . . . . 1 . Low Security (%) 90 | 100 100 100 . 80 100 Level 1 9 | . . . . 19 . Level 2 . | . . . . . . Level 3 . | . . . . . . Level 4 . | . . . . . . Level 5 . | . . . . . . High Security . | . . . . . . Max Security . | . . . . . . Squads Dispatched 2 | . . . . 1 1 Investigation . | . . . . . . Extermination . | . . . . . . Reinforcement 1 | . . . . 1 . Assault . | . . . . . . Garrison 1 | . . . . . 1 Intercept . | . . . . . . Searches Triggered . | . . . . . . Construction Impeded . | . . . . . . Haulers Reinforced . | . . . . . . Active Scanning Responses . | . . . . . . Cargo Convoy Interrupts . | . . . . . . Stealth | -11 -10 -10 -10 -8 -8 --------- Run | Yrd Mat Min Sub Mat Sto Distress Signals 2 | . . . . 2 . Communications Jammed . | . . . . . . Distress Signals . | . . . . . . Times Spotted 32 | . . 3 2 17 10 Peak Tracking Total 6 | . . 3 2 6 5 Tactical Retreats . | . . . . . . Traps | -11 -10 -10 -10 -8 -8 ------- Run | Yrd Mat Min Sub Mat Sto Traps Triggered 4 | . . . 3 . 1 Indirectly . | . . . . . . Trap Hack Attempts . | . . . . . . Triggered . | . . . . . . Disarmed . | . . . . . . Reprogrammed . | . . . . . . Reused . | . . . . . . Traps Extracted . | . . . . . . Installed . | . . . . . . Triggered . | . . . . . . Machines | -11 -10 -10 -10 -8 -8 ---------- Run | Yrd Mat Min Sub Mat Sto Machines Disabled 4 | . . . . 3 1 Max in Single Turn 1 | . . . . 1 1 Machines Repaired . | . . . . . . Machines Dismantled . | . . . . . . Machines Sabotaged . | . . . . . . Overloaded Fab Kills . | . . . . . . Hacking | -11 -10 -10 -10 -8 -8 --------- Run | Yrd Mat Min Sub Mat Sto Machines Accessed 4 | . 1 . . 1 2 Terminals 2 | . 1 . . . 1 Fabricators . | . . . . . . Repair Stations . | . . . . . . Recycling Units . | . . . . . . Scanalyzers 1 | . . . . 1 . Garrison Access 1 | . . . . . 1 Total Hacks 8 | . 2 . . 3 3 Successful 6 | . 1 . . 3 2 Failed 2 | . 1 . . . 1 Catastrophic . | . . . . . . Database Lockouts . | . . . . . . Manual . | . . . . . . Terminals 3 | . 2 . . . 1 Fabricators . | . . . . . . Repair Stations . | . . . . . . Recycling Units . | . . . . . . Scanalyzers 3 | . . . . 3 . Garrison Access 2 | . . . . . 2 Terminal Hacks 2 | . 1 . . . 1 Record 1 | . . . . . 1 Investigation Status 1 | . 1 . . . . Fabricator Hacks . | . . . . . . Repair Station Hacks . | . . . . . . Recycling Unit Hacks . | . . . . . . Scanalyzer 3 | . . . . 3 . Insert Component 1 | . . . . 1 . Analyze 2 | . . . . 2 . Garrison Access Hacks 1 | . . . . . 1 Coupler Status 1 | . . . . . 1 Unauthorized Hacks . | . . . . . . Terminals . | . . . . . . Fabricators . | . . . . . . Repair Stations . | . . . . . . Recycling Units . | . . . . . . Scanalyzers . | . . . . . . Garrison Access . | . . . . . . Data Cores Recovered . | . . . . . . Used . | . . . . . . Hacking Detections 2 | . 1 . . . 1 Full Trace Events . | . . . . . . Feedback Events . | . . . . . . Feedback Blocked . | . . . . . . Robot Schematics Acquired . | . . . . . . Robots Built . | . . . . . . Authchips . | . . . . . . Time . | . . . . . . Total Robot Build Rating . | . . . . . . Part Schematics Acquired 1 | . . . . 1 . Parts Built . | . . . . . . Authchips . | . . . . . . Time . | . . . . . . Total Part Build Rating . | . . . . . . Parts Repaired . | . . . . . . Time . | . . . . . . Parts Recycled . | . . . . . . Recycled Matter . | . . . . . . Retrieved Matter . | . . . . . . Retrieved Components . | . . . . . . Parts Scanalyzed 1 | . . . . 1 . Part Schematics Acquired 1 | . . . . 1 . Parts Damaged . | . . . . . . Bothacking | -11 -10 -10 -10 -8 -8 ------------ Run | Yrd Mat Min Sub Mat Sto Used RIF Installer . | . . . . . . Robots Hacked . | . . . . . . Non-combat . | . . . . . . Combat . | . . . . . . Robot Hacks Applied . | . . . . . . Relay Couplers Released . | . . . . . . Fabnet Peak Effective % . | . . . . . . Robots Rewired . | . . . . . . Allies Hacked . | . . . . . . Hacks Repelled . | . . . . . . Allies | -11 -10 -10 -10 -8 -8 -------- Run | Yrd Mat Min Sub Mat Sto Total Allies . | . . . . . . Largest Group . | . . . . . . Highest-Rated Group . | . . . . . . Highest-Rated Ally . | . . . . . . Total Orders . | . . . . . . Ally Attacks . | . . . . . . Total Damage . | . . . . . . Kills . | . . . . . . Allies Corrupted . | . . . . . . Allies Melted . | . . . . . . Intel | -11 -10 -10 -10 -8 -8 ------- Run | Yrd Mat Min Sub Mat Sto Robot Analysis Total . | . . . . . . Derelict Logs Recovered . | . . . . . . Drone Launches . | . . . . . . Drone Recoveries . | . . . . . . Exploration | -11 -10 -10 -10 -8 -8 ------------- Run | Yrd Mat Min Sub Mat Sto Turns Passed 1093 | 67 75 179 91 497 184 Spaces Moved 638 | 56 63 136 51 237 95 Core 101 | 28 . . . 15 58 Treads 109 | . . . . 109 . Legs 305 | 28 63 136 51 27 . Wheels . | . . . . . . Hover . | . . . . . . Flight 123 | . . . . 86 37 Fastest Speed 30 | 50 120 120 120 103 30 Average Speed 133 | 100 120 120 161 163 87 Slowest Speed 250 | 120 120 120 190 250 150 Overloaded Moves . | . . . . . . Propulsion Burnouts . | . . . . . . Robots Hopped . | . . . . . . Cave-ins Triggered . | . . . . . . Exploration Rate (%) 17 | 3 20 23 6 28 25 Regions Visited 5 Branch Regions 3 Pre-discovered Areas . | . . . . . . Known Exits Taken . | . . . . . . Unknown Exits Taken 5 | 1 1 1 1 1 . Scrap Searched 1 | . . 1 . . . Spaces Dug . | . . . . . . Terrain Destroyed 96 | . . 15 12 69 . Melee . | . . . . . . Projectile 4 | . . . . 4 . AOE 92 | . . 15 12 65 . Terrain Rammed . | . . . . . . Walls Destroyed . | . . . . . . Machines Disabled . | . . . . . . Actions | -11 -10 -10 -10 -8 -8 --------- Run | Yrd Mat Min Sub Mat Sto Total 791 | 67 62 143 54 306 159 Wait 25 | . . . . . 25 Move 633 | 55 62 135 50 236 95 Hop . | . . . . . . Pick Up 32 | 7 . 2 1 18 4 Fast Attach . | . . . . . . Attach 25 | 5 . 1 1 14 4 Detach 2 | . . . . 2 . Swap 6 | . . 1 . 4 1 Drop 10 | . . . . 10 . Fire 57 | . . 4 2 22 29 Melee . | . . . . . . Ram 1 | . . . . . 1 Kick . | . . . . . . Crush . | . . . . . . Escape Stasis . | . . . . . . Rewire . | . . . . . . Trap . | . . . . . . Miscellaneous . | . . . . . . Route ------- -11/Scrapyard -10/Materials -10/Mines -10/Subcaves -8/Materials -8/Storage History --------- Turn | Location | Event 10 | -11/Scrapyard | Discovered new exit (range 15) 68 | -11/Scrapyard | Entered Materials 127 | -10/Materials | Discovered new exit (range 14) 143 | -10/Materials | Entered Mines 144 | -10/Mines | Assembled infested the area 149 | -10/Mines | Assisted by a Guerilla fighting off Assembled 264 | -10/Mines | YI-UF0 nonchalantly dropped a Grenade Launcher on the ground 311 | -10/Mines | Discovered new exit (range 8) 317 | -10/Mines | Build established: Mutant 322 | -10/Mines | Entered Subcaves 379 | -10/Subcaves | Discovered new exit (range 15) 413 | -10/Subcaves | Entered Materials 413 | -8/Materials | Evolved 4 slots: Power x1, Propulsion x1, Utility x2 885 | -8/Materials | Discovered new exit (range 15) 910 | -8/Materials | Entered Storage 982 | -8/Storage | Lost 3 parts (1p1u1w) 1018 | -8/Storage | Garrison activated, responded to threat 1045 | -8/Storage | Core integrity fell below 50% 1072 | -8/Storage | Core integrity fell below 20% 1094 | -8/Storage | Destroyed by S-10 Pest with Light Assault Rifle Last Messages --------------- Flight Unit destroyed. Acquired Field Laser. Critical hit (Burn: +37). Y-45 Defender heat damages Heat Sink. Y-45 Defender heat spikes uncontrollably. Hvy. Assault Rifle melted. Heat Sink melted. Y-45 Defender destroyed. K-01 Serf collects debris. K-01 Serf suffers critical hit (Burn). K-01 Serf destroyed. Broken Imp. Terrain Scanner destroyed. Field Laser destroyed. S-10 Pest destroyed. Critical hit (Burn: +37). Imp. VTOL Module destroyed. G-47 Trooper destroyed. Hvy. Particle Gun destroyed. Acquired Lgt. Assault Rifle. S-10 Pest destroyed. Map ----- +----------------------------------------------------+ | # !# #???????????????????????????? | | # # #???????????????????????????? | | # """ # #?????????????????#?????????? | | # """ # #???????????????????????????? | | # """ + #?????????#?????????????????? | | # """ # #################??#????????? | | # """ # ???????????? | | # # ^ ?????????? ? | | # + !^ " ???????????? | | # ## ### ^"G" ######?#???????????? | | # ## #?# ^" " ##?????????????????? | | ######## #?# ^ "#?????????????????? | | ???????# #?# T#???????????????#?? | | ???????# #?# "#??????###########? | | ???????# #?# ######### """ #? | | ???????#+#?# + "T" ##? | | ???????????##"T"## ######### #?? | | ????????????###### #????#""" #?? | | ???????????#####?# #????#"R #?? | | ????????#??#"""#?# #????#""" "" #?? | | ????????####"T"### #????#### """ #?? | | ????????# # #???????# """ #?? | | ????????# # #????#??# #?? | | ??????### %[# #############+####?? | | ??????#"" !! =*%# ???? | | ??????#"T !! @%=+ ???? | | ??????#"" %=% !s# ???? | | ??????### " "" % ###+#############????? | | ???????# "R"" #?? ????????????????? | | ???????## """ #?? ????????????????? | | ????????##########?? ???????????????? | | ????????????????????? ???????????????? | | ????????????????????? ??????????????? | | ????????????????????? ??????????????? | | ?????????????????????? ?????????????? | | ?????????????????????? ?????????????? | | ?????????????????????? ???????????????? | | ??????????????????????????????????????? | | ??????????????????????????????????????? | | ??????????????????????????????????????? | | ??????????????????????????????????????? | | ??????????????????????????????????????? | | ??????????????????????????????????????? | | ??????????????????????????????????????? | | ??????????????????????????????????????? | | ??????????????????????????????????????? | | ??????????????????????????????????????? | | ??????????????????????????????????????? | | ??????????????????????????????????????? | | ??????????????????????????????????????? | +----------------------------------------------------+ Best States ------------- Heat Dissipation 31 Energy Generation 17 Energy Capacity 415 Matter Stores 300 Matter Capacity 300 Sight Range 16 Terrain Scan Range 16 Terrain Scan Density 10 Armor Coverage 150 Evasion (%) 64 Recoil Reduction 2 Item Schematics ----------------- Imp. VTOL Module | -8/Materials | Scanalyzed Robot Schematics ------------------ None Fabricated ------------ Nothing Alien Tech Used ----------------- None Achievements -------------- Loot Pinata Challenges ------------ None Game ------ Seed OpticalHoverAccelerator Manual? 0 Play Time 00:14:10 Cumulative 5.1 hours Start 2024.03.14 @ 18:24:15 End 2024.03.14 @ 18:35:33 Sessions 1 Manual Loads 0 Difficulty Rogue Special Mode None Game No. 9 Rogue 7 Adventurer 2 Explorer 0 Win Type - Total 0 Types 0/0/0/0/0/0/0/0/0 Lore% 9 Gallery% 16 Achievement% 10 Wizard Run 0 Options --------- Layout 1 ASCII 0 Keyboard 0 Movement Arrows Keybinds 0 Fullscreen 1 Font 24/Smallcaps Map View 50x35 Zoom Use 0% Tactical HUD 0 Map Filters NONE Filters NONE Steam 1 RUN: 1a260665-0b01-4772-a1e2-35f57b824726